bitfinex/quotes_BTCUSD_20220205
["timestamp","ask_amount","ask_price","bid_price","bid_amount"]
[1644080671351,0.03,41136.0,41080.0,0.8731]
[1644080671352,0.05,41128.0,41080.0,0.8731]
[1644080671551,0.33108,41127.0,41122.0,0.00070511]
[1644080671752,0.33108,41127.0,41116.0,0.01339903]
[1644080671753,0.40545,41127.0,41116.0,0.01339903]
[1644080671999,0.40545,41127.0,41116.0,0.00016766]
[1644080672000,0.04237,41117.0,41116.0,0.00016766]
[1644080672200,0.04237,41117.0,41104.0,0.08573651]
[1644080672201,0.75,41116.0,41104.0,0.08573651]
[1644080672399,0.0446,41116.0,41111.0,0.06874514]
[1644080672802,0.25,41115.0,41110.0,0.05]
[1644080672999,0.25,41115.0,41090.0,0.3]
[1644080673000,0.00999571,41114.0,41090.0,0.05015883]
[1644080673201,0.00999571,41114.0,41089.0,0.09518296]
[1644080673202,2.91692868,41103.0,41089.0,0.09518296]
[1644080673406,0.05,41093.0,41075.0,0.0010668]
[1644080673602,0.3446,41092.0,41085.0,0.00015888]
[1644080673801,0.6076,41088.0,41076.0,0.00015871]
[1644080674000,0.30418666,41086.0,41076.0,0.00015871]
[1644080674201,0.0446,41085.0,41080.0,0.24287647]
[1644080674402,0.0446,41085.0,41076.0,0.00015871]
[1644080674601,0.0446,41085.0,41074.0,0.00763]
[1644080674803,0.02881017,41085.0,41074.0,0.00763]
[1644080675003,0.1802278,41106.0,41084.0,0.05763]
[1644080675308,1.05,41110.0,41104.0,0.07276128]
[1644080675503,0.57587363,41115.0,41100.0,0.36532942]
[1644080675504,4.02359478,41101.0,41100.0,0.36532942]
[1644080675761,0.182687,41115.0,41100.0,0.10992942]
[1644080675762,0.01905878,41106.0,41100.0,0.10992942]
[1644080675961,0.01905878,41106.0,41100.0,0.00992942]
[1644080675962,0.928756,41101.0,41100.0,0.00992942]
[1644080676164,1.073611,41105.0,41100.0,0.00778853]
[1644080676359,0.26636,41101.0,41100.0,0.0678333]
[1644080676560,0.26636,41101.0,41099.0,0.0446]
[1644080676561,0.01,41101.0,41099.0,0.0446]
[1644080676760,0.01,41101.0,41092.0,0.0028218]
[1644080676761,0.01,41101.0,41093.0,0.00015853]
[1644080676959,0.01,41101.0,41092.0,0.0028218]
[1644080677162,0.01,41101.0,41092.0,0.0104518]
[1644080677360,0.01,41101.0,41093.0,0.0446]
[1644080677563,0.01,41101.0,41099.0,0.08075682]
[1644080677868,0.39756973,41098.0,41095.0,0.00015853]
[1644080678061,0.75,41095.0,41086.0,0.01960216]
[1644080678262,0.05,41092.0,41086.0,0.0446]
[1644080678463,0.01960216,41087.0,41074.0,0.70645175]
[1644080678668,0.01960216,41087.0,41052.0,0.05402931]
[1644080678669,1.9475,41075.0,41052.0,0.05402931]
[1644080678867,1.9475,41075.0,41052.0,0.04691644]
[1644080678868,0.32591496,41070.0,41052.0,0.04691644]
[1644080679063,0.32591496,41070.0,41035.0,0.34061968]
[1644080679064,0.5576,41064.0,41041.0,0.00067968]
[1644080679261,0.05,41066.0,41041.0,0.15067968]
[1644080679494,0.05,41066.0,41041.0,0.00067968]
[1644080679495,0.035931,41061.0,41041.0,0.00067968]
[1644080679691,0.05,41066.0,41041.0,0.00067968]
[1644080679692,0.3,41064.0,41041.0,0.0013831]
[1644080679894,0.05,41069.0,41039.0,1.3339516]
[1644080679895,0.048,41067.0,41062.0,0.21933419]
[1644080680092,0.048,41067.0,41066.0,0.002]
[1644080680292,0.57775,41066.0,41064.0,0.002]
[1644080680499,0.0013,41078.0,41062.0,0.21749163]
[1644080680500,0.3,41078.0,41062.0,0.21749163]
[1644080680692,0.3,41078.0,41063.0,0.06527559]
[1644080680693,0.5946,41077.0,41063.0,0.06527559]
[1644080680890,0.5946,41077.0,41062.0,0.21233419]
[1644080680891,0.0446,41077.0,41070.0,0.06785918]
[1644080681093,0.0446,41077.0,41071.0,0.55370668]
[1644080681491,0.0446,41077.0,41069.0,0.00015744]
[1644080681492,2.864053,41076.0,41069.0,0.00015744]
[1644080681692,0.0446,41075.0,41068.0,0.00070565]
[1644080681894,0.05,41069.0,41068.0,0.00070565]
[1644080682193,0.0946,41069.0,41068.0,0.00070565]
[1644080682393,0.0446,41069.0,41063.0,0.3204224]
[1644080682594,0.02010346,41080.0,41066.0,0.75]
[1644080682798,0.001,41067.0,41066.0,0.75]
[1644080682997,0.001,41067.0,41066.0,0.75015744]
[1644080683249,0.02010346,41080.0,41067.0,0.75]
[1644080683448,0.02010346,41080.0,41075.0,0.4298619]
[1644080683449,0.0446,41076.0,41075.0,0.4298619]
[1644080683650,0.0446,41076.0,41075.0,0.93843144]
[1644080683851,0.00095051,41091.0,41077.0,0.73759013]
[1644080684053,0.105,41090.0,41079.0,0.75]
[1644080684250,0.3711,41105.0,41081.0,0.75]
[1644080684450,1.969199,41089.0,41082.0,0.69011741]
[1644080684649,0.05,41106.0,41083.0,0.26162307]
[1644080684848,0.05,41106.0,41084.0,0.3]
[1644080685051,0.09296,41106.0,41084.0,0.30015744]
[1644080685250,0.13944,41095.0,41084.0,0.30015744]
[1644080685449,0.13644,41085.0,41084.0,0.00015744]
[1644080685657,0.18944,41105.0,41084.0,0.75]
[1644080685954,0.04648,41099.0,41085.0,0.11465043]
[1644080686150,0.19569,41098.0,41092.0,0.00070444]
[1644080686351,0.32821,41097.0,41093.0,0.40565759]
[1644080686554,0.05,41105.0,41096.0,0.00899999]
[1644080686555,0.04971075,41105.0,41096.0,0.00899999]
[1644080686753,0.02,41119.0,41104.0,0.00899999]
[1644080686998,0.02,41119.0,41116.0,0.06329896]
[1644080687200,0.23309001,41118.0,41116.0,0.06329896]
[1644080687598,0.18529001,41118.0,41116.0,0.06329896]
[1644080687997,0.18529001,41118.0,41111.0,0.00015744]
[1644080688202,0.18529001,41118.0,41107.0,0.00015744]
[1644080688398,0.1920343,41118.0,41105.0,0.01972871]
[1644080688599,0.1870343,41118.0,41110.0,0.22305215]
[1644080688799,0.41269001,41118.0,41110.0,0.22305215]
[1644080688997,0.09296,41117.0,41115.0,0.29372208]
[1644080689199,0.24209,41116.0,41115.0,0.29372208]
[1644080689402,0.32505,41116.0,41115.0,0.29372208]
[1644080689600,0.05,41127.0,41117.0,0.75]
[1644080689801,0.065,41129.0,41118.0,0.37490251]
[1644080689999,0.04136058,41129.0,41118.0,0.37490251]
[1644080690200,0.04136058,41129.0,41118.0,0.37505995]
[1644080690399,0.04136058,41129.0,41128.0,0.06542547]
[1644080690646,0.04136058,41129.0,41116.0,0.00015744]
[1644080690647,0.10036057,41129.0,41116.0,0.00015744]
[1644080690851,0.05899999,41117.0,41113.0,0.00015744]
[1644080691048,0.05,41118.0,41112.0,0.00015744]
[1644080691246,0.04136058,41129.0,41110.0,0.191]
[1644080691247,0.05,41124.0,41110.0,0.191]
[1644080691447,0.04136058,41129.0,41110.0,0.191]
[1644080691448,0.04136058,41129.0,41111.0,0.3]
[1644080691645,0.04136058,41129.0,41113.0,0.07432262]
[1644080691846,0.0025,41118.0,41108.0,0.30015744]
[1644080692060,0.0025,41118.0,41112.0,0.00015744]
[1644080692346,0.0025,41118.0,41113.0,0.33006147]
[1644080692845,0.04786533,41124.0,41117.0,0.00213467]
[1644080693044,0.04786533,41124.0,41118.0,0.06856161]
[1644080693246,0.04786533,41124.0,41123.0,0.00213467]
[1644080693449,0.02,41129.0,41122.0,0.27999416]
[1644080693450,0.04786533,41125.0,41122.0,0.27999416]
[1644080693648,0.04786533,41128.0,41123.0,0.3673755]
[1644080693846,0.02,41129.0,41123.0,0.00015744]
[1644080694048,0.02,41129.0,41120.0,0.00015744]
[1644080694049,0.00899999,41121.0,41120.0,0.00015744]
[1644080694245,0.04786533,41121.0,41107.0,0.00213467]
[1644080694496,0.02,41129.0,41109.0,0.01825404]
[1644080694497,0.00029373,41123.0,41109.0,0.01825404]
[1644080694697,0.00029373,41123.0,41109.0,0.01325404]
[1644080694698,0.04786533,41119.0,41109.0,0.01325404]
[1644080694999,0.00029373,41123.0,41118.0,0.00213467]
[1644080695196,0.00029373,41123.0,41120.0,0.00213467]
[1644080695397,0.00029373,41123.0,41109.0,0.01325404]
[1644080695398,0.00899999,41117.0,41115.0,0.00015744]
[1644080695598,0.09246533,41116.0,41110.0,0.00015744]
[1644080695798,0.04786533,41112.0,41110.0,0.0213191]
[1644080696003,0.04786533,41112.0,41101.0,0.00069842]
[1644080696004,0.75899999,41111.0,41101.0,0.00069842]
[1644080696198,0.75899999,41111.0,41106.0,0.00015622]
[1644080696199,0.10359999,41110.0,41106.0,0.00015622]
[1644080696397,0.05686532,41107.0,41101.0,0.00069842]
[1644080696597,0.0446,41110.0,41101.0,0.00069842]
[1644080696598,0.09246533,41106.0,41101.0,0.00069842]
[1644080696799,0.04786533,41102.0,41098.0,0.00015622]
[1644080696997,0.04786533,41106.0,41101.0,0.00283297]
[1644080697198,0.0446,41105.0,41101.0,0.0006983]
[1644080697398,0.0396,41105.0,41104.0,0.00213467]
[1644080697599,0.0396,41105.0,41104.0,0.08719078]
[1644080697801,0.02201724,41111.0,41104.0,0.38719078]
[1644080698144,0.0213191,41111.0,41104.0,0.38719078]
[1644080698344,0.00899999,41120.0,41105.0,0.75]
[1644080698549,0.00899999,41120.0,41110.0,0.0213191]
[1644080698550,0.05,41116.0,41110.0,0.0213191]
[1644080698744,0.05,41123.0,41110.0,0.0213191]
[1644080698945,0.05,41126.0,41110.0,0.3213191]
[1644080699145,0.05,41123.0,41110.0,0.32147531]
[1644080699344,0.05,41123.0,41116.0,0.08774886]
[1644080699543,0.05,41123.0,41111.0,0.00015621]
[1644080699744,0.05,41123.0,41116.0,0.60465389]
[1644080699944,0.01182088,41126.0,41116.0,0.58965389]
[1644080699945,0.05,41126.0,41116.0,0.58965389]
[1644080700145,0.05,41121.0,41116.0,0.82965315]
[1644080700344,0.05,41128.0,41116.0,0.82965315]
[1644080700649,0.00069637,41123.0,41121.0,0.07858017]
[1644080701444,0.02,41129.0,41121.0,0.07858017]
[1644080701645,0.02,41129.0,41128.0,0.08698664]
[1644080701903,0.07,41129.0,41122.0,0.00015621]
[1644080702095,0.07,41129.0,41118.0,0.00015621]
[1644080702293,0.07,41129.0,41123.0,0.35371491]
[1644080702494,0.07,41129.0,41117.0,0.00015621]
[1644080702693,0.02,41129.0,41116.0,0.47134911]
[1644080702896,0.05,41123.0,41116.0,0.47134911]
[1644080703096,0.05,41119.0,41116.0,0.23999926]
[1644080703298,0.05,41119.0,41111.0,0.00015621]
[1644080703299,0.01182088,41117.0,41111.0,0.00015621]
[1644080703496,0.05,41117.0,41111.0,0.37693793]
[1644080703701,0.06084,41121.0,41112.0,0.26756535]
[1644080703895,0.06084,41121.0,41120.0,0.08128056]
[1644080704096,0.05,41122.0,41120.0,0.08128056]
[1644080704296,0.05,41127.0,41120.0,0.08128056]
[1644080704499,0.02,41129.0,41121.0,0.26767053]
[1644080704697,0.05,41125.0,41121.0,0.26767053]
[1644080704897,0.02,41129.0,41122.0,0.0771149]
[1644080704898,0.07,41129.0,41122.0,0.0771149]
[1644080705097,0.05,41128.0,41122.0,0.0771149]
[1644080705299,0.00069589,41128.0,41122.0,0.0771149]
[1644080705747,0.05,41126.0,41122.0,0.0771149]
[1644080705947,0.00069589,41128.0,41122.0,0.0771149]
[1644080706351,0.02,41129.0,41123.0,0.28992353]
[1644080706550,0.00069589,41127.0,41123.0,0.59007974]
[1644080706748,0.00069589,41127.0,41123.0,0.28992353]
[1644080706948,0.00069589,41127.0,41124.0,0.2722428]
[1644080707550,0.02,41129.0,41124.0,0.2722428]
[1644080707749,0.00117861,41134.0,41125.0,0.75]
[1644080707950,0.00117861,41134.0,41126.0,1.05]
[1644080708149,0.00117861,41134.0,41127.0,0.00015621]
[1644080708349,0.00117861,41134.0,41133.0,0.07203297]
[1644080708552,0.00117861,41134.0,41124.0,0.27239901]
[1644080708750,0.055,41139.0,41133.0,0.35999436]
[1644080709491,0.005,41139.0,41134.0,0.07138607]
[1644080709695,0.005,41139.0,41134.0,0.37154228]
[1644080709891,0.18529178,41149.0,41136.0,0.75]
[1644080709892,0.1126679,41149.0,41136.0,0.75]
[1644080710093,0.0002926,41139.0,41137.0,0.3]
[1644080710290,0.0002926,41139.0,41138.0,0.23158785]
[1644080710492,0.07119206,41151.0,41139.0,0.75]
[1644080710493,0.02119206,41151.0,41139.0,0.75]
[1644080710791,0.01182088,41149.0,41148.0,0.08822372]
[1644080710991,0.05828369,41149.0,41148.0,0.08822372]
[1644080711191,0.02119206,41151.0,41148.0,0.08822372]
[1644080711393,0.02105406,41151.0,41150.0,0.26308608]
[1644080711792,0.12046281,41152.0,41150.0,0.26308608]
[1644080711994,0.17618731,41167.0,41154.0,0.75]
[1644080712296,0.24789792,41169.0,41164.0,0.07807778]
[1644080712297,0.02,41169.0,41164.0,0.07807778]
[1644080712492,0.02,41169.0,41165.0,0.20111232]
[1644080712695,0.02,41169.0,41168.0,0.05]
[1644080712893,0.02,41169.0,41165.0,0.20111232]
[1644080713149,0.02,41169.0,41164.0,0.07807778]
[1644080713150,0.990103,41169.0,41164.0,0.07807778]
[1644080713348,0.02,41169.0,41164.0,0.07807778]
[1644080713550,0.16711992,41168.0,41164.0,0.07807778]
[1644080713750,0.03,41168.0,41164.0,0.07807778]
[1644080714152,0.02,41169.0,41164.0,0.07807778]
[1644080714750,0.02,41169.0,41166.0,0.05]
[1644080714951,0.00029239,41169.0,41167.0,0.75]
[1644080715153,0.21773163,41186.0,41169.0,0.75]
[1644080715349,0.36941392,41189.0,41188.0,0.08222379]
[1644080715551,0.36941392,41189.0,41172.0,0.3]
[1644080715552,0.197294,41189.0,41172.0,0.3]
[1644080715751,0.197294,41189.0,41170.0,0.1325]
[1644080715752,0.529555,41189.0,41166.0,0.3]
[1644080715950,0.529555,41189.0,41160.0,0.2751]
[1644080715951,0.1969,41185.0,41161.0,0.29982055]
[1644080716151,0.14288133,41184.0,41161.0,0.34982055]
[1644080716350,0.01752212,41170.0,41165.0,0.05]
[1644080716553,0.34937892,41192.0,41160.0,0.2751]
[1644080716554,2.82685568,41201.0,41183.0,0.07959036]
[1644080716757,2.82685568,41201.0,41171.0,0.3]
[1644080716758,0.0409,41193.0,41171.0,0.3]
[1644080717014,0.21846889,41192.0,41171.0,0.3]
[1644080717412,0.1969,41191.0,41171.0,0.3]
[1644080717611,0.1969,41191.0,41169.0,0.01752212]
[1644080717815,0.1469,41188.0,41169.0,0.01752212]
[1644080718212,0.060763,41180.0,41169.0,0.01752212]
[1644080718414,0.15963663,41179.0,41169.0,0.01752212]
[1644080718811,0.05,41179.0,41169.0,0.01752212]
[1644080719015,0.21846839,41178.0,41169.0,0.01752212]
[1644080719212,0.121518,41176.0,41171.0,0.35446356]
[1644080719416,0.121518,41176.0,41169.0,0.01752212]
[1644080719812,0.121518,41176.0,41170.0,0.06376854]
[1644080720013,0.121518,41176.0,41172.0,0.05]
[1644080720215,0.060759,41175.0,41170.0,0.06376854]
[1644080720413,0.060759,41175.0,41170.0,0.08424448]
[1644080720639,0.05,41171.0,41170.0,0.08424448]
[1644080720844,0.060759,41175.0,41146.0,0.10038038]
[1644080720845,0.121522,41173.0,41146.0,0.10038038]
[1644080721044,0.121522,41173.0,41141.0,0.022]
[1644080721045,0.05,41161.0,41141.0,0.022]
[1644080721242,0.121538,41162.0,41141.0,0.022]
[1644080721243,0.06078,41158.0,41141.0,0.022]
[1644080721443,0.05,41156.0,41141.0,0.022]
[1644080721840,0.15168,41158.0,41155.0,0.06568996]
[1644080722045,0.10168,41158.0,41157.0,0.08494457]
[1644080722242,0.10168,41158.0,41149.0,0.24847191]
[1644080722541,0.10168,41158.0,41141.0,0.022]
[1644080722542,0.05,41156.0,41141.0,0.022]
[1644080722744,0.0909,41156.0,41141.0,0.022]
[1644080722942,0.121581,41150.0,41141.0,0.022]
[1644080723142,0.060792,41147.0,41141.0,0.022]
[1644080723344,0.06051407,41147.0,41141.0,0.022]
[1644080723541,0.06044207,41147.0,41144.0,0.07270721]
[1644080724598,0.06044207,41147.0,41144.0,0.31610222]
[1644080724794,0.06044207,41147.0,41144.0,0.07270721]
[1644080724996,0.0409,41146.0,41139.0,0.08800676]
[1644080725296,0.0409,41146.0,41143.0,0.07585336]
[1644080725494,0.0909,41146.0,41139.0,0.08700676]
[1644080725694,0.0409,41146.0,41139.0,0.08700676]
[1644080726095,0.0409,41146.0,41140.0,0.35688209]
[1644080726495,0.0409,41146.0,41141.0,0.06534456]
[1644080726696,0.06044207,41147.0,41141.0,0.06534456]
[1644080726896,0.05544207,41147.0,41139.0,0.08700676]
[1644080727105,0.3,41146.0,41139.0,0.08700676]
[1644080727299,0.060803,41141.0,41139.0,0.08700676]
[1644080727498,0.101703,41140.0,41139.0,0.08700676]
[1644080728240,0.101703,41140.0,41139.0,0.09151869]
[1644080728438,0.101703,41140.0,41139.0,0.08700676]
[1644080728639,0.101703,41140.0,41139.0,0.09151869]
[1644080728841,0.2469,41158.0,41139.0,0.39151869]
[1644080728842,0.223314,41151.0,41139.0,0.39151869]
[1644080729039,0.182414,41151.0,41140.0,0.29298393]
[1644080729239,0.060787,41150.0,41139.0,0.08700676]
[1644080729439,0.060787,41150.0,41143.0,0.26862252]
[1644080729440,0.101687,41150.0,41143.0,0.26862252]
[1644080729645,0.101687,41150.0,41143.0,0.27313445]
[1644080729839,0.101687,41150.0,41143.0,0.26862252]
[1644080730039,0.101687,41150.0,41143.0,0.0006977]
[1644080730239,0.101687,41150.0,41146.0,0.08826618]
[1644080730642,0.101687,41150.0,41144.0,0.0006977]
[1644080730838,0.096687,41150.0,41144.0,0.0006977]
[1644080731041,0.04548807,41149.0,41144.0,0.0006977]
[1644080731239,0.04548807,41146.0,41139.0,0.08700676]
[1644080731439,0.3,41148.0,41139.0,0.08700676]
[1644080731440,0.1,41148.0,41139.0,0.08700676]
[1644080731641,0.121614,41142.0,41139.0,0.08700676]
[1644080732095,0.04548807,41140.0,41131.0,0.03964234]
[1644080732297,0.04548807,41137.0,41131.0,0.03964234]
[1644080732693,0.060814,41136.0,41131.0,0.03964234]
[1644080732894,0.060814,41136.0,41135.0,0.00451193]
[1644080733295,0.06039734,41136.0,41135.0,0.00451193]
[1644080733495,0.06039734,41136.0,41135.0,0.53159993]
[1644080734094,0.182413,41152.0,41135.0,0.53159993]
[1644080734095,0.060789,41147.0,41143.0,0.07204081]
[1644080734292,0.060789,41147.0,41141.0,0.00451193]
[1644080734493,0.060789,41147.0,41138.0,0.00451193]
[1644080734693,0.121596,41145.0,41138.0,0.00451193]
[1644080734898,0.121598,41144.0,41141.0,0.00451193]
[1644080735094,0.121598,41144.0,41142.0,0.58157408]
[1644080735294,0.121598,41144.0,41143.0,0.09258033]
[1644080735496,0.01530393,41148.0,41145.0,0.75]
[1644080735760,0.0006949,41152.0,41147.0,0.00451193]
[1644080735958,0.00277931,41156.0,41151.0,0.06683412]
[1644080736160,0.02158779,41156.0,41154.0,0.2319123]
[1644080736357,0.01880848,41156.0,41155.0,0.28499243]
[1644080736757,0.05958048,41161.0,41156.0,0.6]
[1644080736960,0.13412107,41167.0,41156.0,0.6]
[1644080736961,0.04548807,41166.0,41156.0,0.6]
[1644080737359,0.121537,41174.0,41156.0,0.9]
[1644080737565,0.23792237,41171.0,41162.0,0.20874189]
[1644080737759,0.060765,41173.0,41162.0,0.20874189]
[1644080737760,0.00069537,41163.0,41162.0,0.20874189]
[1644080737960,0.00069537,41163.0,41162.0,0.84271371]
[1644080738560,0.00069537,41163.0,41162.0,0.9274751]
[1644080738759,0.04548807,41177.0,41162.0,0.9274751]
[1644080738960,0.00278101,41171.0,41168.0,0.00451193]
[1644080739164,0.09548807,41186.0,41170.0,0.65]
[1644080739402,0.2169,41199.0,41182.0,0.06397108]
[1644080739594,0.080741,41189.0,41182.0,0.06397108]
[1644080739793,0.22213785,41188.0,41182.0,0.4470064]
[1644080739994,0.080741,41189.0,41182.0,0.4470064]
[1644080740394,0.04548807,41183.0,41182.0,0.06397108]
[1644080740793,0.02,41189.0,41182.0,0.06397108]
[1644080740994,0.02,41189.0,41173.0,0.00451193]
[1644080740995,0.10622807,41183.0,41173.0,0.00451193]
[1644080741195,0.10622807,41183.0,41171.0,0.4451]
[1644080741196,0.16697907,41183.0,41171.0,0.4451]
[1644080741394,0.16697907,41183.0,41175.0,0.36441564]
[1644080741793,0.16697907,41183.0,41170.0,0.67033813]
[1644080741794,0.10624307,41177.0,41170.0,0.02033813]
[1644080741995,0.10624307,41177.0,41171.0,0.02251314]
[1644080742295,0.43637143,41177.0,41171.0,0.01800121]
[1644080742498,0.43637143,41177.0,41170.0,0.02033813]
[1644080742499,0.04548807,41174.0,41170.0,0.02033813]
[1644080742700,2.25076393,41176.0,41170.0,0.02033813]
[1644080742701,0.121536,41173.0,41170.0,0.02033813]
[1644080742896,0.04548807,41171.0,41169.0,0.00069536]
[1644080743147,0.07876421,41172.0,41169.0,0.00069536]
[1644080743350,0.07876421,41172.0,41170.0,0.07586683]
[1644080743955,0.01800121,41172.0,41170.0,0.07586683]
[1644080744152,0.01800121,41172.0,41171.0,0.61727196]
[1644080744549,0.00029112,41173.0,41172.0,0.75]
[1644080744751,0.26463149,41192.0,41172.0,0.75451193]
[1644080744752,0.10623307,41187.0,41172.0,0.75451193]
[1644080744951,0.00029113,41174.0,41173.0,0.00451193]
[1644080745456,0.00029113,41174.0,41171.0,0.4229949]
[1644080745852,0.060745,41176.0,41171.0,0.4229949]
[1644080746051,0.055745,41176.0,41171.0,0.4229949]
[1644080746254,0.0006979,41175.0,41172.0,0.26955616]
[1644080746652,0.060742,41177.0,41174.0,0.00451193]
[1644080746904,0.060742,41177.0,41176.0,0.00451193]
[1644080747097,0.060742,41177.0,41173.0,0.72105999]
[1644080747298,0.41804683,41193.0,41173.0,0.72105999]
[1644080747299,0.060735,41181.0,41173.0,0.72105999]
[1644080747698,0.04393462,41181.0,41178.0,0.4318116]
[1644080747898,0.04283839,41181.0,41178.0,0.4318116]
[1644080748103,0.03240702,41181.0,41178.0,0.4318116]
[1644080748300,0.060219,41180.0,41178.0,0.4318116]
[1644080749100,0.121489,41179.0,41178.0,0.4318116]
[1644080749903,0.121489,41179.0,41178.0,0.07169921]
[1644080750102,0.060744,41179.0,41178.0,0.07169921]
[1644080750402,0.060744,41179.0,41178.0,0.04134921]
[1644080750642,0.060744,41179.0,41173.0,0.02062305]
[1644080750841,0.05,41178.0,41173.0,0.02062305]
[1644080751038,0.05,41178.0,41177.0,0.33207281]
[1644080751238,0.05,41178.0,41173.0,0.02062305]
[1644080751640,0.060744,41179.0,41174.0,0.08588223]
[1644080751840,0.05,41178.0,41173.0,0.02062305]
[1644080752043,0.060744,41179.0,41173.0,0.02062305]
[1644080752044,0.05,41176.0,41173.0,0.02062305]
[1644080752242,0.05,41176.0,41171.0,0.00069851]
[1644080752446,0.060758,41172.0,41171.0,0.00069851]
[1644080752644,0.060758,41172.0,41169.0,0.02110193]
[1644080752645,0.2,41171.0,41169.0,0.02110193]
[1644080752845,0.36931964,41172.0,41169.0,0.02110193]
[1644080752846,0.3588661,41170.0,41169.0,0.02110193]
[1644080753043,0.22566232,41168.0,41159.0,0.21675033]
[1644080753346,0.22566232,41168.0,41152.0,0.0031]
[1644080753347,0.05,41165.0,41152.0,0.0031]
[1644080753544,0.05,41161.0,41152.0,0.0031]
[1644080753745,0.05,41161.0,41147.0,0.0011]
[1644080753746,0.060776,41157.0,41147.0,0.0011]
[1644080753941,0.060776,41157.0,41148.0,0.33181323]
[1644080754142,0.060776,41157.0,41156.0,0.25058805]
[1644080754143,0.055776,41157.0,41156.0,0.25058805]
[1644080754397,0.055776,41157.0,41156.0,0.07172012]
[1644080754993,0.055776,41157.0,41154.0,0.00041066]
[1644080755195,0.05,41156.0,41154.0,0.00041066]
[1644080755394,0.41614491,41155.0,41154.0,0.00041066]
[1644080755595,0.41614491,41155.0,41147.0,0.0011]
[1644080755596,0.45704491,41155.0,41147.0,0.0011]
[1644080755795,0.05,41148.0,41147.0,0.0011]
[1644080755999,0.151703,41148.0,41144.0,0.0031]
[1644080756295,0.101703,41148.0,41144.0,0.0031]
[1644080756894,0.060803,41148.0,41144.0,0.0031]
[1644080757297,0.060803,41148.0,41144.0,0.0701371]
[1644080757494,0.060803,41148.0,41116.0,0.14009]
[1644080757696,0.05,41142.0,41117.0,0.88055]
[1644080757897,0.24458291,41155.0,41129.0,0.0607873]
[1644080758152,0.05,41153.0,41133.0,0.02115031]
[1644080758751,0.05,41148.0,41133.0,0.02115031]
[1644080758949,0.05,41144.0,41139.0,0.36567958]
[1644080759148,0.05,41144.0,41140.0,0.20078218]
[1644080759351,0.05,41144.0,41141.0,0.336698]
[1644080759549,0.05,41144.0,41142.0,0.07134128]
[1644080759750,0.05,41153.0,41150.0,0.08825584]
[1644080759949,0.06078,41151.0,41140.0,0.50078218]
[1644080760353,0.05,41148.0,41133.0,0.02115031]
[1644080760554,0.05,41148.0,41143.0,0.00068389]
[1644080760856,0.30059611,41147.0,41143.0,0.00068389]
[1644080761057,0.050785,41146.0,41143.0,0.00068389]
[1644080761252,0.20694007,41145.0,41143.0,0.00068389]
[1644080761453,0.172386,41146.0,41143.0,0.09012324]
[1644080761653,0.172386,41146.0,41143.0,0.08943935]
[1644080762091,0.172386,41146.0,41142.0,0.00068391]
[1644080762491,0.38810892,41146.0,41142.0,0.00068391]
[1644080762694,0.050785,41146.0,41142.0,0.00068391]
[1644080762893,0.050785,41146.0,41135.0,0.32563557]
[1644080763093,0.050785,41146.0,41143.0,0.42892696]
[1644080763496,0.060777,41150.0,41144.0,0.336698]
[1644080763701,0.060777,41150.0,41143.0,0.42892696]
[1644080763994,0.121555,41153.0,41151.0,0.08934503]
[1644080764194,0.121555,41153.0,41144.0,0.00069824]
[1644080764396,0.121552,41156.0,41144.0,0.00069824]
[1644080764596,0.080773,41159.0,41144.0,0.00069824]
[1644080764798,0.02,41159.0,41144.0,0.09396086]
[1644080764995,0.02,41159.0,41145.0,0.336698]
[1644080765194,0.02,41159.0,41147.0,0.07152795]
[1644080765399,0.02,41159.0,41143.0,0.56330296]
[1644080765400,0.05,41158.0,41150.0,0.00069818]
[1644080765644,0.05,41155.0,41150.0,0.00069818]
[1644080765842,0.141542,41159.0,41150.0,0.00069818]
[1644080765843,0.32,41159.0,41150.0,0.00069818]
[1644080766042,0.25185103,41156.0,41150.0,0.00069818]
[1644080766247,0.32,41159.0,41150.0,0.00069818]
[1644080766442,0.32,41159.0,41150.0,0.39192432]
[1644080766644,0.060778,41155.0,41151.0,0.00069817]
[1644080767042,0.110778,41155.0,41151.0,0.00069817]
[1644080767441,0.060778,41155.0,41151.0,0.00069817]
[1644080767641,0.060778,41155.0,41145.0,0.06687788]
[1644080767844,0.182342,41156.0,41137.0,0.01812961]
[1644080767845,0.060791,41147.0,41137.0,0.01812961]
[1644080768045,0.29966902,41148.0,41137.0,0.01812961]
[1644080768747,0.121582,41149.0,41137.0,0.01812961]
[1644080768943,0.121582,41149.0,41146.0,0.081072]
[1644080768944,0.121584,41147.0,41146.0,0.081072]
[1644080769397,0.182374,41149.0,41146.0,0.081072]
[1644080769398,0.060792,41149.0,41146.0,0.081072]
[1644080769594,0.060792,41149.0,41142.0,0.29962992]
[1644080769792,0.05,41147.0,41142.0,0.29962992]
[1644080770192,0.060791,41145.0,41138.0,0.01978907]
[1644080770392,0.060796,41143.0,41135.0,0.0180322]
[1644080770593,0.33822988,41143.0,41135.0,0.0180322]
[1644080771093,0.33822988,41143.0,41140.0,0.06666306]
[1644080771299,0.060796,41143.0,41140.0,0.06666306]
[1644080771693,0.05,41142.0,41140.0,0.06666306]
[1644080771893,0.060797,41141.0,41140.0,0.06666306]
[1644080772093,0.060797,41141.0,41140.0,0.06166306]
[1644080772293,0.060797,41141.0,41140.0,0.33345675]
[1644080772694,0.060797,41141.0,41140.0,0.06166306]
[1644080772900,0.060797,41141.0,41138.0,0.37172625]
[1644080773344,0.060797,41141.0,41138.0,0.36672625]
[1644080773545,0.08500714,41141.0,41138.0,0.00069777]
[1644080773849,0.08500714,41141.0,41137.0,0.00069778]
[1644080774044,0.08500714,41141.0,41134.0,0.0788674]
[1644080774445,0.10921728,41141.0,41137.0,0.36163627]
[1644080775648,0.10921728,41141.0,41137.0,0.57557678]
[1644080776749,0.10421728,41141.0,41137.0,0.57557678]
[1644080776998,0.00076094,41140.0,41137.0,0.57557678]
[1644080777798,0.00076094,41140.0,41137.0,0.36163627]
[1644080778802,0.00076094,41140.0,41137.0,0.5931909]
[1644080779194,0.00076094,41140.0,41137.0,0.36163627]
[1644080779796,0.00076094,41140.0,41137.0,0.35939124]